bitfinex-derivatives/quotes_BTCF0:USTF0_20241210
["timestamp","ask_amount","ask_price","bid_price","bid_amount"]
[1733811986955,0.0001118,97118.0,97117.0,0.08661065]
[1733811988860,0.0001118,97118.0,97117.0,0.08561065]
[1733811989065,0.0001118,97118.0,97117.0,0.08661065]
[1733811989562,0.0001118,97118.0,97117.0,0.08661027]
[1733811991368,0.0001118,97118.0,97117.0,0.08561027]
[1733811992668,0.0001118,97118.0,97117.0,0.08239323]
[1733811992962,0.0001118,97118.0,97117.0,0.09552794]
[1733811993359,0.0001118,97118.0,97117.0,0.10517901]
[1733811994671,0.03837256,97131.0,97128.0,0.05146]
[1733811994852,0.03837256,97131.0,97129.0,0.00836425]
[1733811995057,0.03837256,97131.0,97130.0,0.00840425]
[1733811995263,0.04855547,97131.0,97130.0,0.051459]
[1733811995466,0.14077014,97131.0,97130.0,0.051459]
[1733811995660,0.04855547,97131.0,97130.0,0.051459]
[1733811996464,0.14077014,97131.0,97130.0,0.051459]
[1733811996663,0.10239758,97131.0,97130.0,0.051459]
[1733811996964,0.36152,97132.0,97130.0,0.051459]
[1733811997268,0.45301467,97132.0,97131.0,4e-05]
[1733811997563,0.3608,97132.0,97131.0,0.03244]
[1733811997965,0.09221467,97137.0,97131.0,0.03244]
[1733811998261,0.09221467,97139.0,97137.0,0.051455]
[1733811998464,0.09221467,97140.0,97137.0,0.051455]
[1733811998669,0.09221467,97144.0,97143.0,0.051452]
[1733811998963,0.09221467,97147.0,97145.0,0.051451]
[1733811999364,0.37161571,97151.0,97147.0,0.05145]
[1733811999569,0.3608,97151.0,97150.0,0.051448]
[1733811999755,0.3608,97151.0,97150.0,0.051488]
[1733812001773,0.3608,97151.0,97150.0,0.052488]
[1733812002864,0.3608,97151.0,97150.0,0.00104]
[1733812007175,0.3608,97151.0,97150.0,0.00425631]
[1733812007368,0.00011186,97152.0,97150.0,0.00425631]
[1733812007572,0.00011186,97152.0,97151.0,0.08686431]
[1733812007767,0.00011186,97152.0,97151.0,0.08690431]
[1733812008466,0.00011186,97152.0,97151.0,0.08690393]
[1733812008773,0.00011186,97152.0,97151.0,0.11263393]
[1733812010264,0.00011186,97152.0,97151.0,0.11363393]
[1733812011770,0.00011186,97152.0,97151.0,0.1136339]
[1733812014070,0.3608,97171.0,97153.0,0.051447]
[1733812014264,0.3608,97171.0,97169.0,0.051438]
[1733812014463,0.3608,97171.0,97170.0,0.0353559]
[1733812015570,0.01002009,97173.0,97170.0,0.0353559]
[1733812015776,0.051434,97178.0,97171.0,0.0546529]
[1733812015968,0.051434,97178.0,97172.0,0.0032559]
[1733812016275,0.051434,97178.0,97177.0,4e-05]
[1733812016471,0.051434,97178.0,97177.0,0.0032559]
[1733812016665,0.06167811,97178.0,97177.0,0.0032559]
[1733812017574,0.06167811,97178.0,97177.0,0.0042559]
[1733812017981,0.06167811,97178.0,97177.0,0.0052559]
[1733812019775,0.01024411,97178.0,97177.0,0.0052559]
[1733812019972,0.05143,97185.0,97179.0,0.051433]
[1733812020169,0.05143,97185.0,97179.0,0.0546489]
[1733812020368,0.051431,97184.0,97179.0,0.0546889]
[1733812020576,0.00046,97180.0,97179.0,0.0546889]
[1733812020874,0.00046,97180.0,97179.0,0.4155848]
[1733812021279,0.3608,97194.0,97192.0,0.051426]
[1733812021474,0.3608,97194.0,97193.0,0.0032159]
[1733812021672,0.3608,97194.0,97193.0,0.0032559]
[1733812022974,0.01038241,97195.0,97193.0,0.0032559]
[1733812023168,0.051425,97195.0,97194.0,0.0032159]
[1733812023871,0.051425,97195.0,97194.0,0.0032559]
[1733812024675,0.051425,97195.0,97179.0,9.59e-05]
[1733812024676,0.051432,97180.0,97179.0,9.59e-05]
[1733812024983,0.412232,97180.0,97179.0,9.59e-05]
[1733812025289,0.412312,97180.0,97179.0,9.59e-05]
[1733812025983,0.773112,97180.0,97179.0,9.59e-05]
[1733812026381,0.86533725,97180.0,97179.0,9.59e-05]
[1733812026582,0.773112,97180.0,97179.0,9.59e-05]
[1733812026786,0.78348388,97180.0,97179.0,9.59e-05]
[1733812027082,0.78348388,97180.0,97153.0,0.3608]
[1733812027276,0.051442,97162.0,97154.0,0.0321]
[1733812027584,0.051443,97161.0,97154.0,0.0321]
[1733812027976,0.051443,97161.0,97155.0,9.18e-05]
[1733812028380,0.3608,97168.0,97155.0,9.18e-05]
[1733812028381,0.051444,97159.0,97155.0,9.18e-05]
[1733812028770,0.051445,97158.0,97155.0,9.18e-05]
[1733812028981,0.051445,97157.0,97155.0,9.18e-05]
[1733812029779,0.051441,97165.0,97155.0,9.18e-05]
[1733812030080,0.37081517,97168.0,97155.0,0.23427231]
[1733812030081,0.051442,97163.0,97155.0,0.23427231]
[1733812030279,0.37153517,97168.0,97155.0,0.23427231]
[1733812030280,0.37081517,97168.0,97156.0,0.18273551]
[1733812030582,0.051444,97160.0,97155.0,0.18582731]
[1733812030782,0.37081517,97168.0,97155.0,0.18582731]
[1733812030989,0.37081517,97168.0,97155.0,0.0020918]
[1733812031191,0.37081517,97168.0,97155.0,0.0040918]
[1733812031192,0.051445,97157.0,97155.0,0.0040918]
[1733812031387,0.051445,97157.0,97155.0,0.0020918]
[1733812031587,0.051445,97157.0,97156.0,0.004]
[1733812032094,0.051445,97157.0,97155.0,0.0070918]
[1733812032288,0.051445,97157.0,97155.0,0.18982731]
[1733812032492,8e-05,97156.0,97155.0,0.0070918]
[1733812032786,8e-05,97156.0,97155.0,0.18982731]
[1733812032987,8e-05,97156.0,97155.0,0.0070918]
[1733812033190,8e-05,97156.0,97155.0,0.18982731]
[1733812033381,8e-05,97156.0,97155.0,0.0050918]
[1733812033581,8e-05,97156.0,97155.0,0.0070918]
[1733812034291,8e-05,97156.0,97155.0,9.18e-05]
[1733812034590,8e-05,97156.0,97155.0,0.24531325]
[1733812035184,0.051525,97156.0,97155.0,0.0070918]
[1733812035888,0.051525,97156.0,97155.0,0.0080918]
[1733812036191,0.051525,97156.0,97155.0,0.19089034]
[1733812036391,0.051525,97156.0,97155.0,0.0080918]
[1733812036603,0.051525,97156.0,97155.0,0.00830794]
[1733812036893,0.4225013,97156.0,97155.0,0.00930794]
[1733812037288,0.4225013,97156.0,97155.0,0.00330794]
[1733812039198,0.05145,97147.0,97146.0,4e-05]
[1733812039383,0.41225,97147.0,97146.0,4e-05]
[1733812039584,0.41233,97147.0,97146.0,0.00325659]
[1733812040193,0.41233,97147.0,97146.0,0.00335318]
[1733812040887,0.47843,97147.0,97146.0,0.00335318]
[1733812041893,0.47843,97147.0,97146.0,1.8e-07]
[1733812042097,0.57069012,97147.0,97146.0,1.8e-07]
[1733812042297,0.051464,97121.0,97120.0,0.3608]
[1733812042795,0.051544,97121.0,97120.0,0.3608]
[1733812043089,0.051544,97121.0,97119.0,0.031]
[1733812043297,0.051544,97121.0,97120.0,0.00010261]
[1733812043495,0.051464,97121.0,97120.0,0.00010261]
[1733812043691,0.051464,97121.0,97120.0,0.00210261]
[1733812044000,0.05146,97129.0,97120.0,0.36690261]
[1733812044197,0.05146,97129.0,97124.0,0.18237503]
[1733812044385,0.05146,97129.0,97125.0,0.18237503]
[1733812044589,0.05146,97129.0,97124.0,0.18237503]
[1733812044791,0.05146,97129.0,97128.0,0.3608]
[1733812044991,0.05146,97129.0,97128.0,0.38657]
[1733812046195,0.3608,97147.0,97128.0,0.38657]
[1733812046395,0.051456,97135.0,97130.0,0.23800373]
[1733812046696,0.0556287,97140.0,97130.0,0.18237503]
[1733812046892,0.051458,97132.0,97130.0,0.18237503]
[1733812047093,0.051459,97130.0,97129.0,0.18237503]
[1733812047287,0.051459,97130.0,97129.0,0.18230428]
[1733812047495,0.051539,97130.0,97128.0,0.57783428]
[1733812047798,0.051459,97130.0,97129.0,0.18230428]
[1733812047994,0.051459,97130.0,97128.0,0.57783428]
[1733812048201,0.051459,97130.0,97128.0,0.57483428]
[1733812048396,0.051459,97130.0,97128.0,0.39253]
[1733812048699,0.051459,97130.0,97128.0,0.57483428]
[1733812048896,0.051459,97130.0,97129.0,0.18530428]
[1733812049600,0.051459,97130.0,97129.0,0.003]
[1733812049894,0.051459,97130.0,97128.0,0.38953]
[1733812050096,0.051459,97130.0,97128.0,0.57179976]
[1733812050293,8e-05,97129.0,97128.0,0.57179976]
[1733812050498,8e-05,97129.0,97128.0,0.38653]
[1733812050698,8e-05,97129.0,97128.0,0.56881702]
[1733812050994,8e-05,97129.0,97128.0,0.21001702]
[1733812051199,8e-05,97129.0,97128.0,0.02773]
[1733812051393,8e-05,97129.0,97128.0,0.02873]
[1733812051992,8e-05,97129.0,97128.0,0.02773]
[1733812052202,8e-05,97129.0,97128.0,0.21001702]
[1733812052397,8e-05,97129.0,97128.0,0.57081702]
[1733812052700,8e-05,97129.0,97128.0,0.02773]
[1733812052907,8e-05,97129.0,97128.0,0.02573]
[1733812053101,8e-05,97129.0,97128.0,0.02773]
[1733812054099,8e-05,97129.0,97128.0,0.27113864]
[1733812054303,8e-05,97129.0,97128.0,0.27213864]
[1733812054607,8e-05,97129.0,97128.0,0.02873]
[1733812055301,8e-05,97129.0,97128.0,0.27228112]
[1733812055497,8e-05,97129.0,97128.0,0.38953]
[1733812056999,8e-05,97129.0,97128.0,0.39153]
[1733812057399,8e-05,97129.0,97128.0,0.39374678]
[1733812057595,8e-05,97129.0,97128.0,0.39174678]
[1733812057901,8e-05,97129.0,97128.0,0.39374678]
[1733812058104,8e-05,97129.0,97128.0,0.63744599]
[1733812058302,8e-05,97129.0,97128.0,0.63644599]
[1733812059101,8e-05,97129.0,97128.0,0.63544599]
[1733812059302,8e-05,97129.0,97128.0,0.39274678]
[1733812063205,8e-05,97129.0,97128.0,0.03194678]
[1733812064611,8e-05,97129.0,97128.0,0.33940971]
[1733812064805,8e-05,97129.0,97128.0,0.56426054]
[1733812065005,8e-05,97129.0,97128.0,0.56426038]
[1733812065206,8e-05,97129.0,97128.0,0.25679745]
[1733812065408,8e-05,97129.0,97128.0,0.25779745]
[1733812065904,8e-05,97129.0,97128.0,0.33604129]
[1733812066211,8e-05,97129.0,97128.0,0.33925814]
[1733812066409,8e-05,97129.0,97128.0,0.56438986]
[1733812066609,8e-05,97129.0,97128.0,0.25907857]
[1733812066806,8e-05,97129.0,97128.0,0.25707857]
[1733812067008,8e-05,97129.0,97128.0,0.25907857]
[1733812068710,8e-05,97129.0,97128.0,0.25586172]
[1733812068906,8e-05,97129.0,97128.0,0.25907857]
[1733812072015,8e-05,97129.0,97128.0,0.25907853]
[1733812072208,8e-05,97129.0,97128.0,0.33945855]
[1733812072405,8e-05,97129.0,97128.0,0.56475447]
[1733812072609,8e-05,97129.0,97128.0,0.33945855]
[1733812072809,8e-05,97129.0,97128.0,0.03394681]
[1733812073410,8e-05,97129.0,97128.0,0.33945855]
[1733812073613,8e-05,97129.0,97128.0,0.25928705]
[1733812074015,8e-05,97129.0,97128.0,0.56487529]
[1733812074210,0.45307787,97129.0,97128.0,0.03394681]
[1733812074415,0.36088,97129.0,97128.0,0.27847128]
[1733812074619,0.39198,97129.0,97128.0,0.03394681]
[1733812075121,0.39198,97129.0,97128.0,0.03394711]
[1733812075521,0.48452435,97129.0,97128.0,0.21725881]
[1733812075923,0.48452435,97129.0,97128.0,0.03394711]
[1733812076118,0.39198,97129.0,97128.0,0.03394711]
[1733812076426,0.39198,97129.0,97128.0,0.03194711]
[1733812076724,0.48448478,97129.0,97128.0,0.02894711]
[1733812078020,0.45338478,97129.0,97128.0,0.02894711]
[1733812078222,8e-05,97129.0,97128.0,0.02573]
[1733812078418,8e-05,97129.0,97128.0,0.02894725]
[1733812079916,8e-05,97129.0,97128.0,0.38974725]
[1733812080926,8e-05,97129.0,97128.0,0.02894725]
[1733812081519,8e-05,97129.0,97128.0,0.61437202]
[1733812082514,8e-05,97129.0,97128.0,0.61537202]
[1733812082719,8e-05,97129.0,97128.0,0.25557202]
[1733812083328,8e-05,97129.0,97128.0,0.25957202]
[1733812083725,8e-05,97129.0,97128.0,0.25557202]
[1733812083927,8e-05,97129.0,97128.0,0.25857202]
[1733812084331,8e-05,97129.0,97128.0,0.25857163]
[1733812084631,8e-05,97129.0,97128.0,0.25857157]
[1733812084929,8e-05,97129.0,97128.0,0.33945293]
[1733812085232,8e-05,97129.0,97128.0,0.25730447]
[1733812086023,8e-05,97129.0,97128.0,0.25830447]
[1733812086825,8e-05,97129.0,97128.0,0.25730447]
[1733812088534,8e-05,97129.0,97128.0,0.62300929]
[1733812088731,8e-05,97129.0,97128.0,0.25630447]
[1733812088937,8e-05,97129.0,97128.0,0.25530447]
[1733812089231,8e-05,97129.0,97128.0,0.25630447]
[1733812089738,8e-05,97129.0,97128.0,0.52171133]
[1733812089944,8e-05,97129.0,97128.0,0.25630447]
[1733812090142,8e-05,97129.0,97128.0,0.25460874]
[1733812090641,8e-05,97129.0,97128.0,0.25660874]
[1733812091235,8e-05,97129.0,97128.0,0.25760874]
[1733812091539,8e-05,97129.0,97128.0,0.29068818]
[1733812092036,8e-05,97129.0,97128.0,0.28868818]
[1733812092238,8e-05,97129.0,97128.0,0.29068818]
[1733812092448,8e-05,97129.0,97128.0,0.25760874]
[1733812092644,8e-05,97129.0,97128.0,0.52396839]
[1733812093541,8e-05,97129.0,97128.0,0.52075159]
[1733812093740,8e-05,97129.0,97128.0,0.88476814]
[1733812095639,0.3608,97147.0,97128.0,0.88545059]
[1733812095846,0.48421405,97159.0,97145.0,0.60510276]
[1733812096040,0.3608,97159.0,97158.0,0.051444]
[1733812096243,0.3608,97159.0,97158.0,0.05466055]
[1733812096947,0.01285946,97163.0,97158.0,0.05466055]
[1733812096948,0.01285946,97163.0,97158.0,0.29892816]
[1733812097249,0.3608,97167.0,97162.0,4e-05]
[1733812097443,0.3608,97167.0,97163.0,0.00321601]
[1733812097650,0.3608,97167.0,97166.0,4e-05]
[1733812097853,0.3608,97167.0,97166.0,0.00325601]
[1733812099349,0.37340369,97167.0,97166.0,0.00325601]
[1733812100542,0.37340369,97167.0,97166.0,0.00425601]
[1733812101250,0.01260369,97167.0,97166.0,0.00425601]
[1733812101448,0.3608,97169.0,97167.0,0.051439]
[1733812101640,0.3608,97169.0,97168.0,0.00321601]
[1733812101841,0.3608,97169.0,97168.0,0.00325601]
[1733812102437,0.36152,97180.0,97168.0,0.00325601]
[1733812102643,0.3608,97180.0,97178.0,0.051433]
[1733812102955,0.3608,97180.0,97179.0,0.00325601]
[1733812103661,0.37340622,97180.0,97179.0,0.00325601]
[1733812104347,0.37340622,97180.0,97179.0,0.00425601]
[1733812105243,0.37340622,97180.0,97179.0,0.00104]
[1733812105445,0.3608,97180.0,97179.0,0.00104]
[1733812106048,0.3608,97180.0,97179.0,0.00425532]
[1733812107747,0.3608,97180.0,97179.0,0.00525532]
[1733812107946,0.3608,97180.0,97179.0,0.00725532]
[1733812108143,0.3608,97180.0,97179.0,0.00404]
[1733812109449,0.3608,97180.0,97179.0,0.00104]
[1733812109748,0.3608,97180.0,97179.0,0.00304]
[1733812110154,0.3608,97180.0,97179.0,0.00204]
[1733812110355,0.36152,97189.0,97179.0,0.00304]
[1733812110550,0.3608,97189.0,97184.0,0.05143]
[1733812110852,0.3608,97189.0,97188.0,4e-05]
[1733812111059,0.01241155,97189.0,97188.0,4e-05]
[1733812111250,0.051425,97194.0,97188.0,4e-05]
[1733812111553,0.3608,97199.0,97179.0,0.3638]
[1733812111554,0.412223,97199.0,97193.0,4e-05]
[1733812111754,0.412943,97199.0,97193.0,4e-05]
[1733812111959,0.04277873,97196.0,97195.0,4e-05]
[1733812112954,0.09420273,97196.0,97195.0,4e-05]
[1733812113850,0.09420273,97196.0,97195.0,0.00325488]
[1733812117456,0.09420273,97196.0,97195.0,0.00325489]
[1733812122961,0.06400273,97196.0,97195.0,0.00325489]
[1733812123559,0.06400273,97196.0,97195.0,4e-05]
[1733812123763,0.06400273,97196.0,97195.0,0.00325483]
[1733812126864,0.06400273,97196.0,97195.0,0.00325494]
[1733812127258,0.06400273,97196.0,97195.0,0.02897494]
[1733812128965,0.18741678,97196.0,97195.0,0.02897494]
[1733812129167,0.06400273,97196.0,97195.0,0.02897494]
[1733812133265,0.06400273,97196.0,97195.0,0.0289753]
[1733812134668,0.18724898,97196.0,97195.0,0.0289753]
[1733812134871,0.06400273,97196.0,97195.0,0.0289753]
[1733812136375,0.06400273,97196.0,97195.0,0.02897493]
[1733812139067,0.06400273,97196.0,97195.0,0.27324308]
[1733812139373,0.06400273,97196.0,97195.0,0.02897493]
[1733812140273,0.15643107,97196.0,97195.0,0.02897493]
[1733812140572,0.06400273,97196.0,97195.0,0.02897493]
[1733812142184,0.06400273,97196.0,97195.0,0.27306796]
[1733812143170,0.06400273,97196.0,97195.0,0.02897482]
[1733812150282,0.06400273,97196.0,97195.0,0.27318699]
[1733812151586,0.42480273,97196.0,97195.0,0.27318699]
[1733812154094,0.42480273,97196.0,97195.0,0.02897482]
[1733812154485,0.42480273,97196.0,97195.0,0.27318699]
[1733812154689,0.42480273,97196.0,97195.0,0.02897482]
[1733812158085,0.06400273,97196.0,97195.0,0.02576]
[1733812158282,0.06400273,97196.0,97195.0,0.02897482]
[1733812164389,0.06400273,97196.0,97195.0,0.33435327]
[1733812164595,0.06400273,97196.0,97195.0,0.33113845]
[1733812164801,0.06400273,97196.0,97195.0,0.55243005]
[1733812165304,0.06400273,97196.0,97195.0,0.33113845]
[1733812165908,0.06400273,97196.0,97195.0,0.02576]
[1733812166900,0.12339886,97205.0,97204.0,0.05142]
[1733812167095,0.051412,97219.0,97210.0,0.051416]
[1733812167398,0.051412,97219.0,97218.0,4e-05]
[1733812167902,0.051412,97219.0,97218.0,0.30552179]
[1733812168399,0.051412,97219.0,97218.0,4e-05]
[1733812168903,0.051412,97219.0,97218.0,0.02575]
[1733812169791,0.051412,97219.0,97218.0,0.02675]
[1733812172399,0.051408,97227.0,97220.0,0.051411]
[1733812172595,0.051408,97227.0,97223.0,0.18289685]
[1733812172899,0.051408,97227.0,97226.0,4e-05]
[1733812173103,0.051408,97227.0,97226.0,0.00325416]
[1733812173297,0.11206692,97230.0,97226.0,0.00325416]
[1733812173298,0.07569105,97230.0,97226.0,0.00325416]
[1733812173505,0.07569105,97230.0,97227.0,0.18603176]
[1733812173695,0.07569105,97230.0,97229.0,4e-05]
[1733812173900,0.07569105,97230.0,97229.0,0.18607176]
[1733812174295,0.07569105,97230.0,97229.0,0.00325416]
[1733812175112,0.07569105,97230.0,97226.0,0.22414883]
[1733812175433,8e-05,97227.0,97224.0,0.3608]
[1733812175799,0.00011787,97237.0,97227.0,0.001]
[1733812176100,0.00011787,97237.0,97236.0,0.412243]
[1733812177411,0.00060001,97283.0,97277.0,0.051381]
[1733812177595,0.00060001,97283.0,97240.0,0.0514]
[1733812177596,0.051372,97295.0,97282.0,0.051378]
[1733812177799,0.051372,97295.0,97290.0,0.3608]
[1733812177997,0.06297774,97295.0,97294.0,4e-05]
[1733812178199,0.051377,97285.0,97279.0,0.3512411]
[1733812178394,0.051377,97285.0,97256.0,0.30376922]
[1733812178395,0.412179,97282.0,97280.0,7.39e-05]
[1733812180006,0.414179,97282.0,97280.0,7.39e-05]
[1733812181097,0.051381,97277.0,97265.0,0.35703434]
[1733812181401,8e-05,97266.0,97265.0,0.35703434]
[1733812182102,8e-05,97266.0,97265.0,0.35715661]
[1733812182703,8e-05,97266.0,97265.0,0.35815661]
[1733812184107,8e-05,97266.0,97265.0,0.35662079]
[1733812185209,8e-05,97266.0,97265.0,0.00012227]
[1733812185417,0.36088,97266.0,97265.0,0.00012227]
[1733812186612,0.36188,97266.0,97265.0,0.00012227]
[1733812187112,0.36188,97266.0,97247.0,0.3608]
[1733812187113,0.36188,97266.0,97247.0,0.36030794]
[1733812187306,0.051391,97258.0,97248.0,0.00321283]
[1733812187610,0.051391,97258.0,97247.0,0.36030794]
[1733812187611,0.051395,97251.0,97249.0,0.00321283]
[1733812187818,0.051395,97251.0,97250.0,0.00321283]
[1733812188111,0.05539058,97260.0,97250.0,0.00329208]
[1733812188304,0.051395,97251.0,97250.0,7.899e-05]
[1733812188504,0.051395,97251.0,97250.0,0.00329207]
[1733812190108,0.051395,97251.0,97250.0,0.00304634]
[1733812190803,0.051391,97259.0,97250.0,0.00304634]
[1733812191006,0.051391,97259.0,97247.0,0.36030794]
[1733812191704,0.051391,97259.0,97257.0,0.3608]
[1733812192211,0.0329,97265.0,97257.0,0.3608]
[1733812192516,0.051388,97264.0,97257.0,0.3608]
[1733812192925,0.051389,97263.0,97257.0,0.3608]
[1733812193114,0.051389,97262.0,97257.0,0.3607017]
[1733812193417,0.05139,97261.0,97257.0,0.3607017]
[1733812195104,0.0329,97265.0,97257.0,0.3607017]
[1733812195305,0.051391,97259.0,97257.0,0.3607017]
[1733812195913,0.051397,97248.0,97246.0,0.3608]
[1733812196120,0.051393,97255.0,97240.0,0.1821554]
[1733812196308,0.051393,97255.0,97238.0,0.3608]
[1733812196309,0.051401,97239.0,97238.0,0.3608]
[1733812196621,0.051481,97239.0,97238.0,0.3608]
[1733812198711,0.051481,97239.0,97238.0,0.3638]
[1733812199114,0.051481,97239.0,97238.0,0.3648]
[1733812199520,0.051481,97239.0,97238.0,0.39051]
[1733812200312,8e-05,97239.0,97238.0,0.39051]
[1733812201119,8e-05,97239.0,97238.0,0.38951]
[1733812201317,8e-05,97239.0,97238.0,0.70128706]
[1733812201522,8e-05,97239.0,97238.0,0.95127986]
[1733812201721,8e-05,97239.0,97238.0,1.31590656]
[1733812201919,8e-05,97239.0,97238.0,1.32490656]
[1733812202222,8e-05,97239.0,97238.0,0.96149241]
[1733812202618,8e-05,97239.0,97238.0,0.95627986]
[1733812202919,8e-05,97239.0,97238.0,0.65549245]
[1733812203225,0.051394,97254.0,97238.0,0.66349245]
[1733812203427,0.051394,97254.0,97253.0,0.3608]
[1733812203628,0.051394,97254.0,97253.0,0.36401259]
[1733812204313,0.051394,97254.0,97253.0,0.66767248]
[1733812205117,0.051394,97254.0,97253.0,0.36601259]
[1733812205313,0.051394,97254.0,97253.0,0.61665857]
[1733812206324,0.065,97269.0,97253.0,0.61665857]
[1733812206530,0.065,97269.0,97263.0,0.3608]
[1733812206531,0.051387,97266.0,97263.0,0.3608]
[1733812206717,0.051387,97266.0,97264.0,0.00321259]
[1733812207021,0.051387,97266.0,97265.0,0.00321259]
[1733812207825,0.052387,97266.0,97265.0,0.00321259]
[1733812208224,0.001,97266.0,97265.0,0.00321259]
[1733812208430,0.065,97269.0,97265.0,0.00321259]
[1733812208723,0.001,97266.0,97263.0,0.71626047]
[1733812208912,0.001,97266.0,97264.0,0.00321236]
[1733812209117,0.001,97266.0,97265.0,0.00321236]
[1733812209317,0.052387,97266.0,97263.0,0.36132]
[1733812209517,0.052387,97266.0,97263.0,0.3608]
[1733812209518,0.051388,97264.0,97263.0,0.3608]
[1733812210025,0.051388,97264.0,97263.0,0.36401255]
[1733812210222,0.412188,97264.0,97263.0,0.00321255]
[1733812210422,0.3608,97264.0,97242.0,0.30407147]
[1733812210623,0.3608,97250.0,97240.0,0.30407147]
[1733812210830,0.3608,97250.0,97238.0,0.32978147]
[1733812211027,0.051401,97240.0,97238.0,0.02571]
[1733812211929,0.051401,97240.0,97238.0,0.03371]
[1733812212424,0.051401,97240.0,97238.0,0.02571]
[1733812213333,0.0308,97239.0,97238.0,0.02571]
[1733812214216,0.0629896,97249.0,97238.0,0.077111]
[1733812214421,0.0629896,97249.0,97239.0,0.051401]
[1733812214422,0.051396,97249.0,97239.0,0.051401]
[1733812214626,0.051396,97249.0,97248.0,4e-05]
[1733812215632,0.052396,97249.0,97248.0,4e-05]
[1733812216222,0.001,97249.0,97248.0,4e-05]
[1733812217528,0.001,97249.0,97248.0,0.00204]
[1733812217719,0.41271601,97250.0,97248.0,0.00204]
[1733812217922,0.001,97249.0,97248.0,0.00204]
[1733812218528,0.41279601,97250.0,97248.0,0.00304]
[1733812218725,0.412196,97250.0,97249.0,4e-05]
[1733812220030,0.412196,97250.0,97249.0,0.00104]
[1733812220432,0.3608,97250.0,97249.0,0.00104]
[1733812221928,0.3608,97250.0,97249.0,0.00204]
[1733812222338,0.3608,97250.0,97249.0,0.00525297]
[1733812222923,0.3608,97250.0,97249.0,0.00325297]
[1733812223126,0.3608,97250.0,97249.0,0.00825297]
[1733812223827,0.3608,97250.0,97249.0,0.00625297]
[1733812224028,0.3608,97250.0,97249.0,0.00725297]
[1733812224626,0.3608,97250.0,97249.0,0.00425297]
[1733812224935,0.3608,97250.0,97249.0,0.00525297]
[1733812225535,0.3608,97250.0,97249.0,0.00625297]
[1733812225924,0.051393,97256.0,97249.0,0.00625297]
[1733812226125,0.051393,97256.0,97250.0,0.00321297]
[1733812226325,0.051393,97256.0,97251.0,0.00321297]
[1733812226527,0.051393,97256.0,97252.0,0.00321297]
[1733812226732,0.051394,97255.0,97253.0,0.00321297]
[1733812226932,0.051394,97255.0,97254.0,0.00321297]
[1733812227635,0.3608,97257.0,97254.0,0.00321297]
[1733812227834,0.3608,97257.0,97255.0,0.00321297]
[1733812228132,0.412193,97257.0,97256.0,0.00321297]
[1733812229336,0.413193,97257.0,97256.0,0.00321297]
[1733812230033,0.052393,97257.0,97256.0,0.00321297]
[1733812230222,0.001,97257.0,97256.0,0.00321297]
[1733812230427,0.001,97257.0,97256.0,0.25280176]
[1733812230937,0.001,97257.0,97256.0,0.30716195]
[1733812231138,0.001,97257.0,97256.0,0.58271421]
[1733812231337,0.051396,97259.0,97256.0,0.27876523]
[1733812231536,0.051397,97258.0,97256.0,0.33286274]
[1733812231734,0.051397,97258.0,97256.0,0.02891297]
[1733812231937,0.032,97257.0,97256.0,0.02891297]
[1733812232637,0.051397,97258.0,97256.0,0.02891297]
[1733812232938,0.051397,97258.0,97257.0,0.00321311]
[1733812233938,0.051397,97258.0,97256.0,0.01688592]
[1733812234346,8e-05,97257.0,97256.0,0.01688592]
[1733812235545,0.00108,97257.0,97256.0,0.01688592]
[1733812236050,8e-05,97257.0,97256.0,0.01688592]
[1733812236236,0.00108,97257.0,97256.0,0.01688592]
[1733812238143,8e-05,97257.0,97256.0,0.01688592]
[1733812238459,8e-05,97257.0,97256.0,0.26014236]
[1733812238460,0.00108,97257.0,97256.0,0.26014236]
[1733812238645,0.00108,97257.0,97256.0,0.01688592]
[1733812244344,0.00108,97257.0,97256.0,0.32083569]
[1733812244956,0.00108,97257.0,97256.0,0.01688592]
[1733812245141,0.00108,97257.0,97256.0,0.57145388]
[1733812245445,0.00108,97257.0,97256.0,0.26750411]
[1733812245847,0.00108,97257.0,97256.0,0.27071703]
[1733812247051,8e-05,97257.0,97256.0,0.27071703]
[1733812247250,0.00108,97257.0,97256.0,0.27071703]
[1733812247450,0.00108,97257.0,97256.0,0.02009884]
[1733812247642,8e-05,97257.0,97256.0,0.02009884]
[1733812247846,0.00108,97257.0,97256.0,0.02009884]
[1733812249251,0.00108,97257.0,97256.0,0.00321292]
[1733812249453,0.00108,97257.0,97256.0,0.24688863]
[1733812250046,0.00108,97257.0,97256.0,0.00321292]
[1733812250541,0.052477,97257.0,97256.0,0.00321331]
[1733812252250,0.052477,97257.0,97256.0,0.24681703]
[1733812252444,0.052477,97257.0,97256.0,0.00321331]
[1733812253155,0.052477,97257.0,97256.0,0.24681703]
[1733812253352,0.052477,97257.0,97256.0,0.00321331]
[1733812254151,0.00108,97257.0,97254.0,0.0257]
[1733812254352,0.051398,97255.0,97254.0,0.0257]
[1733812254554,0.051398,97255.0,97254.0,0.02891329]
[1733812255058,0.051478,97255.0,97254.0,0.02891329]
[1733812256442,0.051478,97255.0,97254.0,0.0257]
[1733812256654,0.051478,97255.0,97254.0,0.02891348]
[1733812257155,0.052478,97255.0,97254.0,0.02891346]
[1733812257750,0.051402,97248.0,97237.0,0.30452256]
[1733812257946,0.051407,97237.0,97230.0,0.30452256]
[1733812258146,0.3608,97238.0,97222.0,0.0332]
[1733812258147,0.051411,97231.0,97229.0,0.30452256]
[1733812258347,0.051411,97231.0,97228.0,0.30452256]
[1733812258348,0.051412,97229.0,97228.0,0.30452256]
[1733812258649,0.051413,97227.0,97225.0,0.30452256]
[1733812258848,0.051413,97227.0,97226.0,0.30452256]
[1733812259055,8e-05,97226.0,97225.0,0.30452256]
[1733812259251,8e-05,97226.0,97225.0,0.25107729]
[1733812259551,0.051414,97225.0,97223.0,0.02571]
[1733812259752,0.00016,97226.0,97224.0,0.25097645]
[1733812259947,0.00016,97226.0,97223.0,0.02571]
[1733812259948,0.3608,97230.0,97226.0,0.051413]
[1733812260147,0.3608,97230.0,97229.0,0.30423007]
[1733812260346,0.051409,97235.0,97229.0,0.2509545]
[1733812260554,0.051409,97235.0,97234.0,0.304216]
[1733812260750,0.051409,97235.0,97234.0,0.2509945]
[1733812261055,0.051409,97235.0,97234.0,0.55516775]